fUSD/lending_fUSD_20260622
["ID","MTS","AMOUNT","RATE_DAILY","PERIOD"]
[426026034,1782119502000,-730.03,0.00028219,2]
[426026005,1782119502000,-633.18,0.00028219,2]
[426025974,1782119502000,-151.0,0.00028219,7]
[426025981,1782119502000,-575.67,0.00028219,2]
[426025982,1782119502000,-579.91,0.00028219,2]
[426025984,1782119502000,-639.31,0.00028219,2]
[426025980,1782119502000,-500.0,0.00028219,2]
[426025983,1782119502000,-500.0,0.00028219,2]
[426025985,1782119502000,-500.0,0.00028219,2]
[426026011,1782119502000,-500.0,0.00028219,2]
[426025986,1782119502000,-500.0,0.00028219,2]
[426025988,1782119502000,-500.0,0.00028219,2]
[426025990,1782119502000,-500.0,0.00028219,2]
[426025987,1782119502000,-500.0,0.00028219,2]
[426025992,1782119502000,-500.0,0.00028219,2]
[426025989,1782119502000,-500.0,0.00028219,2]
[426025995,1782119502000,-500.0,0.00028219,2]
[426026000,1782119502000,-812.29,0.00028219,2]
[426026013,1782119502000,-526.09,0.00028219,2]
[426026003,1782119502000,-500.0,0.00028219,2]
[426025998,1782119502000,-519.6851142,0.00028219,2]
[426025999,1782119502000,-509.39,0.00028219,2]
[426026002,1782119502000,-720.67,0.00028219,2]
[426026012,1782119502000,-500.0,0.00028219,2]
[426025996,1782119502000,-501.28786472,0.00028219,2]
[426025997,1782119502000,-852.64,0.00028219,2]
[426025993,1782119502000,-500.0,0.00028219,2]
[426025991,1782119502000,-500.0,0.00028219,2]
[426026001,1782119502000,-508.19,0.00028219,2]
[426025994,1782119502000,-500.0,0.00028219,2]
[426026079,1782119503000,-599.37,0.00028219,2]
[426026077,1782119503000,-500.0,0.00028219,2]
[426026071,1782119503000,-500.0,0.00028219,2]
[426026075,1782119503000,-500.0,0.00028219,2]
[426026074,1782119503000,-763.71,0.00028219,2]
[426026065,1782119503000,-500.0,0.00028219,2]
[426026076,1782119503000,-500.0,0.00028219,2]
[426026069,1782119503000,-500.0,0.00028219,2]
[426026072,1782119503000,-500.0,0.00028219,2]
[426026068,1782119503000,-500.0,0.00028219,2]
[426026073,1782119503000,-803.96,0.00028219,2]
[426026089,1782119503000,-500.0,0.00028219,2]
[426026097,1782119503000,-500.0,0.00028219,2]
[426026081,1782119503000,-637.55,0.00028219,2]
[426026082,1782119503000,-500.0,0.00028219,2]
[426026091,1782119503000,-585.59,0.00028219,2]
[426026090,1782119503000,-500.0,0.00028219,2]
[426026080,1782119503000,-523.88,0.00028219,2]
[426026086,1782119503000,-500.0,0.00028219,2]
[426026083,1782119503000,-500.0,0.00028219,2]
[426026084,1782119503000,-823.1,0.00028219,2]
[426026087,1782119503000,-500.0,0.00028219,2]
[426026085,1782119503000,-500.0,0.00028219,2]
[426026088,1782119503000,-500.0,0.00028219,2]
[426026092,1782119503000,-671.19,0.00028219,2]
[426026070,1782119503000,-637.9391426,0.00028219,2]
[426026078,1782119503000,-500.0,0.00028219,2]
[426026067,1782119503000,-500.0,0.00028219,2]
[426026046,1782119503000,-500.0,0.00028219,2]
[426026066,1782119503000,-500.0,0.00028219,2]
[426026095,1782119503000,-500.0,0.00028219,2]
[426026037,1782119503000,-653.56,0.00028219,2]
[426026038,1782119503000,-500.0,0.00028219,2]
[426026040,1782119503000,-500.0,0.00028219,2]
[426026041,1782119503000,-500.0,0.00028219,2]
[426026050,1782119503000,-500.0,0.00028219,2]
[426026051,1782119503000,-500.0,0.00028219,2]
[426026039,1782119503000,-519.55723552,0.00028219,2]
[426026045,1782119503000,-541.25,0.00028219,2]
[426026048,1782119503000,-500.0,0.00028219,2]
[426026044,1782119503000,-500.0,0.00028219,2]
[426026049,1782119503000,-500.0,0.00028219,2]
[426026043,1782119503000,-500.0,0.00028219,2]
[426026047,1782119503000,-500.0,0.00028219,2]
[426026042,1782119503000,-500.0,0.00028219,2]
[426026053,1782119503000,-500.0,0.00028219,2]
[426026063,1782119503000,-500.0,0.00028219,2]
[426026054,1782119503000,-500.0,0.00028219,2]
[426026052,1782119503000,-500.0,0.00028219,2]
[426026055,1782119503000,-536.97,0.00028219,2]
[426026056,1782119503000,-500.0,0.00028219,2]
[426026057,1782119503000,-500.0,0.00028219,2]
[426026060,1782119503000,-500.0,0.00028219,2]
[426026059,1782119503000,-535.38,0.00028219,2]
[426026058,1782119503000,-524.31620676,0.00028219,2]
[426026062,1782119503000,-897.75,0.00028219,2]
[426026061,1782119503000,-500.0,0.00028219,2]
[426026064,1782119503000,-500.0,0.00028219,2]
[426026101,1782119503000,-529.1683384,0.00028219,2]
[426026152,1782119503000,-676.49,0.00028219,2]
[426026094,1782119503000,-751.33,0.00028219,2]
[426026129,1782119503000,-838.97,0.00028219,2]
[426026130,1782119503000,-576.18,0.00028219,2]
[426026125,1782119503000,-500.0,0.00028219,2]
[426026131,1782119503000,-500.0,0.00028219,2]
[426026133,1782119503000,-373.8289813,0.00028219,2]
[426026134,1782119503000,-500.0,0.00028219,2]
[426026145,1782119503000,-500.0,0.00028219,2]
[426026135,1782119503000,-321.22786179,0.00028219,2]
[426026143,1782119503000,-670.29,0.00028219,2]
[426026144,1782119503000,-500.0,0.00028219,2]
[426026146,1782119503000,-1224.66,0.00028219,2]
[426026138,1782119503000,-500.0,0.00028219,2]
[426026137,1782119503000,-500.0,0.00028219,2]
[426026136,1782119503000,-500.0,0.00028219,2]
[426026140,1782119503000,-500.0,0.00028219,2]
[426026139,1782119503000,-542.93,0.00028219,2]
[426026142,1782119503000,-739.86,0.00028219,2]
[426026141,1782119503000,-951.64,0.00028219,2]
[426026149,1782119503000,-500.0,0.00028219,2]
[426026156,1782119503000,-500.0,0.00028219,2]
[426026148,1782119503000,-500.0,0.00028219,2]
[426026150,1782119503000,-500.0,0.00028219,2]
[426026147,1782119503000,-500.0,0.00028219,2]
[426026154,1782119503000,-500.0,0.00028219,2]
[426026151,1782119503000,-500.0,0.00028219,2]
[426026155,1782119503000,-500.0,0.00028219,2]
[426026098,1782119503000,-39661.016941,0.00028219,2]
[426026128,1782119503000,-500.0,0.00028219,2]
[426026132,1782119503000,-500.0,0.00028219,2]
[426026153,1782119503000,-500.0,0.00028219,2]
[426026126,1782119503000,-500.0,0.00028219,2]
[426026099,1782119503000,-500.0,0.00028219,2]
[426026096,1782119503000,-1462.67,0.00028219,2]
[426026100,1782119503000,-806.07,0.00028219,2]
[426026102,1782119503000,-4107.37,0.00028219,2]
[426026103,1782119503000,-636.06,0.00028219,2]
[426026093,1782119503000,-500.0,0.00028219,2]
[426026104,1782119503000,-500.0,0.00028219,2]
[426026127,1782119503000,-500.0,0.00028219,2]
[426026107,1782119503000,-500.0,0.00028219,2]
[426026106,1782119503000,-500.0,0.00028219,2]
[426026109,1782119503000,-500.0,0.00028219,2]
[426026108,1782119503000,-500.81356888,0.00028219,2]
[426026111,1782119503000,-500.0,0.00028219,2]
[426026105,1782119503000,-500.0,0.00028219,2]
[426026121,1782119503000,-631.36,0.00028219,2]
[426026110,1782119503000,-592.34,0.00028219,2]
[426026123,1782119503000,-538.73,0.00028219,2]
[426026119,1782119503000,-461.44490411,0.00028219,2]
[426026118,1782119503000,-500.0,0.00028219,2]
[426026120,1782119503000,-500.0,0.00028219,2]
[426026117,1782119503000,-500.0,0.00028219,2]
[426026124,1782119503000,-901.57,0.00028219,2]
[426026115,1782119503000,-500.0,0.00028219,2]
[426026114,1782119503000,-500.0,0.00028219,2]
[426026113,1782119503000,-332.3847347,0.00028219,2]
[426026122,1782119503000,-500.0,0.00028219,2]
[426026112,1782119503000,-500.0,0.00028219,2]
[426026116,1782119503000,-723.93,0.00028219,2]
[426026206,1782119504000,-500.0,0.00028219,2]
[426026196,1782119504000,-500.0,0.00028219,2]
[426026198,1782119504000,-500.0,0.00028219,2]
[426026190,1782119504000,-500.0,0.00028219,2]
[426026188,1782119504000,-500.0,0.00028219,2]
[426026189,1782119504000,-500.0,0.00028219,2]
[426026191,1782119504000,-500.0,0.00028219,2]
[426026187,1782119504000,-410.0598898,0.00028219,2]
[426026186,1782119504000,-643.36,0.00028219,2]
[426026184,1782119504000,-542.8,0.00028219,2]
[426026192,1782119504000,-795.59,0.00028219,2]
[426026202,1782119504000,-500.0,0.00028219,2]
[426026221,1782119504000,-500.0,0.00028219,2]
[426026208,1782119504000,-873.0,0.00028219,2]
[426026197,1782119504000,-500.0,0.00028219,2]
[426026199,1782119504000,-500.0,0.00028219,2]
[426026207,1782119504000,-500.0,0.00028219,2]
[426026201,1782119504000,-500.0,0.00028219,2]
[426026203,1782119504000,-500.0,0.00028219,2]
[426026204,1782119504000,-525.97672537,0.00028219,2]
[426026205,1782119504000,-500.0,0.00028219,2]
[426026210,1782119504000,-500.0,0.00028219,2]
[426026220,1782119504000,-500.0,0.00028219,2]
[426026213,1782119504000,-500.0,0.00028219,2]
[426026209,1782119504000,-500.0,0.00028219,2]
[426026182,1782119504000,-500.0,0.00028219,2]
[426026200,1782119504000,-823.84,0.00028219,2]
[426026193,1782119504000,-656.6,0.00028219,2]
[426026173,1782119504000,-748.95,0.00028219,2]
[426026185,1782119504000,-500.0,0.00028219,2]
[426026157,1782119504000,-916.73,0.00028219,2]
[426026158,1782119504000,-546.92749177,0.00028219,2]
[426026159,1782119504000,-500.0,0.00028219,2]
[426026161,1782119504000,-500.0,0.00028219,2]
[426026160,1782119504000,-500.0,0.00028219,2]
[426026163,1782119504000,-500.0,0.00028219,2]
[426026168,1782119504000,-1001.58,0.00028219,2]
[426026167,1782119504000,-745.56,0.00028219,2]
[426026164,1782119504000,-500.0,0.00028219,2]
[426026165,1782119504000,-500.0,0.00028219,2]
[426026162,1782119504000,-500.0,0.00028219,2]
[426026166,1782119504000,-500.0,0.00028219,2]
[426026195,1782119504000,-500.0,0.00028219,2]
[426026170,1782119504000,-500.0,0.00028219,2]
[426026171,1782119504000,-500.0,0.00028219,2]
[426026178,1782119504000,-500.0,0.00028219,2]
[426026174,1782119504000,-1335.55,0.00028219,2]
[426026177,1782119504000,-500.0,0.00028219,2]
[426026211,1782119504000,-500.0,0.00028219,2]
[426026176,1782119504000,-500.0,0.00028219,2]
[426026172,1782119504000,-554.57,0.00028219,2]
[426026180,1782119504000,-618.49627512,0.00028219,2]
[426026179,1782119504000,-500.0,0.00028219,2]
[426026175,1782119504000,-500.0,0.00028219,2]
[426026183,1782119504000,-782.92,0.00028219,2]
[426026194,1782119504000,-834.63,0.00028219,2]
[426026169,1782119504000,-500.0,0.00028219,2]
[426026212,1782119504000,-500.0,0.00028219,2]
[426026181,1782119504000,-500.0,0.00028219,2]
[426026214,1782119504000,-880.48,0.00028219,2]
[426026249,1782119504000,-506.71,0.00028219,2]
[426026250,1782119504000,-923.44,0.00028219,2]
[426026254,1782119504000,-500.0,0.00028219,2]
[426026255,1782119504000,-164.41653477,0.00028219,2]
[426026251,1782119504000,-670.71,0.00028219,2]
[426026252,1782119504000,-500.0,0.00028219,2]
[426026256,1782119504000,-3901.79,0.00028219,2]
[426026253,1782119504000,-500.0,0.00028219,2]
[426026257,1782119504000,-500.0,0.00028219,2]
[426026259,1782119504000,-582.93,0.00028219,2]
[426026260,1782119504000,-500.0,0.00028219,2]
[426026266,1782119504000,-500.0,0.00028219,2]
[426026267,1782119504000,-500.0,0.00028219,2]
[426026262,1782119504000,-500.0,0.00028219,2]
[426026265,1782119504000,-500.0,0.00028219,2]
[426026263,1782119504000,-1214.24,0.00028219,2]
[426026261,1782119504000,-189.69520619,0.00028219,2]
[426026264,1782119504000,-1327.43,0.00028219,2]
[426026258,1782119504000,-698.68,0.00028219,2]
[426026269,1782119504000,-1047.27,0.00028219,2]
[426026270,1782119504000,-978.97,0.00028219,2]
[426026271,1782119504000,-355.34394909,0.00028219,2]
[426026272,1782119504000,-500.0,0.00028219,2]
[426026268,1782119504000,-500.0,0.00028219,2]
[426026273,1782119504000,-680.19,0.00028219,2]
[426026275,1782119504000,-500.0,0.00028219,2]
[426026216,1782119504000,-527.20600221,0.00028219,2]
[426026248,1782119504000,-1051.83,0.00028219,2]
[426026247,1782119504000,-500.0,0.00028219,2]
[426026274,1782119504000,-629.19,0.00028219,2]
[426026245,1782119504000,-601.99888199,0.00028219,2]
[426026246,1782119504000,-500.0,0.00028219,2]
[426026215,1782119504000,-500.0,0.00028219,2]
[426026217,1782119504000,-534.9,0.00028219,2]
[426026219,1782119504000,-539.1,0.00028219,2]
[426026222,1782119504000,-500.0,0.00028219,2]
[426026224,1782119504000,-501.86752711,0.00028219,2]
[426026228,1782119504000,-500.0,0.00028219,2]
[426026225,1782119504000,-500.0,0.00028219,2]
[426026226,1782119504000,-500.0,0.00028219,2]
[426026231,1782119504000,-607.9,0.00028219,2]
[426026232,1782119504000,-500.0,0.00028219,2]
[426026227,1782119504000,-500.0,0.00028219,2]
[426026229,1782119504000,-500.0,0.00028219,2]
[426026218,1782119504000,-623.97676821,0.00028219,2]
[426026230,1782119504000,-500.0,0.00028219,2]
[426026223,1782119504000,-370.86819527,0.00028219,2]
[426026238,1782119504000,-660.72,0.00028219,2]
[426026235,1782119504000,-439.78404252,0.00028219,2]
[426026237,1782119504000,-814.96,0.00028219,2]
[426026240,1782119504000,-500.0,0.00028219,2]
[426026236,1782119504000,-542.12169912,0.00028219,2]
[426026239,1782119504000,-500.0,0.00028219,2]
[426026233,1782119504000,-621.2,0.00028219,2]
[426026243,1782119504000,-500.0,0.00028219,2]
[426026244,1782119504000,-1389.52,0.00028219,2]
[426026242,1782119504000,-977.47,0.00028219,2]
[426026241,1782119504000,-223.22994917,0.00028219,2]
[426026234,1782119504000,-500.0,0.00028219,2]
[426026304,1782119505000,-814.11,0.00028219,2]
[426026310,1782119505000,-500.0,0.00028219,2]
[426026307,1782119505000,-500.0,0.00028219,2]
[426026300,1782119505000,-500.0,0.00028219,2]
[426026308,1782119505000,-894.46,0.00028219,2]
[426026298,1782119505000,-551.69,0.00028219,2]
[426026312,1782119505000,-500.0,0.00028219,2]
[426026299,1782119505000,-500.0,0.00028219,2]
[426026306,1782119505000,-500.0,0.00028219,2]
[426026305,1782119505000,-240.25788463,0.00028219,2]
[426026316,1782119505000,-504.81349499,0.00028219,2]
[426026309,1782119505000,-518.92,0.00028219,2]
[426026313,1782119505000,-582.63,0.00028219,2]
[426026314,1782119505000,-549.31327972,0.00028219,2]
[426026315,1782119505000,-806.18,0.00028219,2]
[426026317,1782119505000,-500.0,0.00028219,2]
[426026318,1782119505000,-500.0,0.00028219,2]
[426026320,1782119505000,-500.0,0.00028219,2]
[426026319,1782119505000,-1524.68,0.00028219,2]
[426026296,1782119505000,-500.0,0.00028219,2]
[426026321,1782119505000,-4836.67,0.00028219,2]
[426026311,1782119505000,-500.0,0.00028219,2]
[426026295,1782119505000,-500.0,0.00028219,2]
[426026291,1782119505000,-500.0,0.00028219,2]
[426026294,1782119505000,-7269.9,0.00028219,2]
[426026323,1782119505000,-500.0,0.00028219,2]
[426026279,1782119505000,-3541.58,0.00028219,2]
[426026280,1782119505000,-772.7,0.00028219,2]
[426026277,1782119505000,-500.0,0.00028219,2]
[426026278,1782119505000,-500.0,0.00028219,2]
[426026276,1782119505000,-500.0,0.00028219,2]
[426026281,1782119505000,-500.0,0.00028219,2]
[426026284,1782119505000,-1029.91,0.00028219,2]
[426026283,1782119505000,-1477.52,0.00028219,2]
[426026282,1782119505000,-807.41,0.00028219,2]
[426026288,1782119505000,-500.0,0.00028219,2]
[426026289,1782119505000,-500.0,0.00028219,2]
[426026286,1782119505000,-500.0,0.00028219,2]
[426026285,1782119505000,-500.0,0.00028219,2]
[426026287,1782119505000,-500.0,0.00028219,2]
[426026290,1782119505000,-549.04447565,0.00028219,2]
[426026293,1782119505000,-500.0,0.00028219,2]
[426026301,1782119505000,-500.0,0.00028219,2]
[426026302,1782119505000,-500.0,0.00028219,2]
[426026303,1782119505000,-500.0,0.00028219,2]
[426026292,1782119505000,-560.65524618,0.00028219,2]
[426026297,1782119505000,-500.0,0.00028219,2]
[426026333,1782119505000,-500.0,0.00028219,2]
[426026326,1782119505000,-500.0,0.00028219,2]
[426026324,1782119505000,-529.27097757,0.00028219,2]
[426026352,1782119505000,-11954.4,0.00028219,2]
[426026351,1782119505000,-683.61,0.00028219,2]
[426026353,1782119505000,-639.43498709,0.00028219,2]
[426026354,1782119505000,-533.65805584,0.00028219,2]
[426026355,1782119505000,-500.0,0.00028219,2]
[426026356,1782119505000,-500.0,0.00028219,2]
[426026358,1782119505000,-2134.45,0.00028219,2]
[426026366,1782119505000,-849.65,0.00028219,2]
[426026360,1782119505000,-763.17,0.00028219,2]
[426026359,1782119505000,-563.24,0.00028219,2]
[426026348,1782119505000,-3619.69,0.00028219,2]
[426026361,1782119505000,-5008.57,0.00028219,2]
[426026362,1782119505000,-500.0,0.00028219,2]
[426026367,1782119505000,-500.0,0.00028219,2]
[426026364,1782119505000,-500.0,0.00028219,2]
[426026368,1782119505000,-500.0,0.00028219,2]
[426026371,1782119505000,-500.0,0.00028219,2]
[426026372,1782119505000,-500.0,0.00028219,2]
[426026370,1782119505000,-368.49634047,0.00028219,2]
[426026369,1782119505000,-500.0,0.00028219,2]
[426026322,1782119505000,-1515.43,0.00028219,2]
[426026373,1782119505000,-500.0,0.00028219,2]
[426026365,1782119505000,-931.05,0.00028219,2]
[426026350,1782119505000,-500.0,0.00028219,2]
[426026363,1782119505000,-500.0,0.00028219,2]
[426026346,1782119505000,-500.0,0.00028219,2]
[426026325,1782119505000,-1305.26,0.00028219,2]
[426026349,1782119505000,-500.0,0.00028219,2]
[426026327,1782119505000,-702.57,0.00028219,2]
[426026331,1782119505000,-787.4,0.00028219,2]
[426026330,1782119505000,-532.44,0.00028219,2]
[426026329,1782119505000,-500.0,0.00028219,2]
[426026328,1782119505000,-500.0,0.00028219,2]
[426026341,1782119505000,-478.90301531,0.00028219,2]
[426026336,1782119505000,-500.0,0.00028219,2]
[426026342,1782119505000,-926.72,0.00028219,2]
[426026337,1782119505000,-2000.0,0.00028219,2]
[426026332,1782119505000,-556.5543716,0.00028219,2]
[426026347,1782119505000,-1487.43,0.00028219,2]
[426026345,1782119505000,-885.95,0.00028219,2]
[426026338,1782119505000,-739.36,0.00028219,2]
[426026339,1782119505000,-699.81,0.00028219,2]
[426026335,1782119505000,-500.0,0.00028219,2]
[426026340,1782119505000,-646.08819477,0.00028219,2]
[426026334,1782119505000,-500.0,0.00028219,2]
[426026343,1782119505000,-8333.7,0.00028219,2]
[426026344,1782119505000,-1036.4,0.00028219,2]
[426026357,1782119505000,-589.47,0.00028219,2]
[426026411,1782119506000,-500.0,0.00028219,2]
[426026406,1782119506000,-500.0,0.00028219,2]
[426026404,1782119506000,-500.0,0.00028219,2]
[426026405,1782119506000,-500.0,0.00028219,2]
[426026403,1782119506000,-1419.64,0.00028219,2]
[426026410,1782119506000,-500.0,0.00028219,2]
[426026409,1782119506000,-500.0,0.00028219,2]
[426026408,1782119506000,-500.0,0.00028219,2]
[426026412,1782119506000,-500.0,0.00028219,2]
[426026407,1782119506000,-5765.88,0.00028219,2]
[426026413,1782119506000,-500.0,0.00028219,2]
[426026422,1782119506000,-500.0,0.00028219,2]
[426026415,1782119506000,-500.0,0.00028219,2]
[426026418,1782119506000,-500.0,0.00028219,2]
[426026424,1782119506000,-500.0,0.00028219,2]
[426026423,1782119506000,-500.0,0.00028219,2]
[426026416,1782119506000,-500.0,0.00028219,2]
[426026420,1782119506000,-500.0,0.00028219,2]
[426026419,1782119506000,-500.0,0.00028219,2]
[426026436,1782119506000,-4048.28,0.00028219,2]
[426026421,1782119506000,-500.0,0.00028219,2]
[426026426,1782119506000,-500.0,0.00028219,2]
[426026402,1782119506000,-1345.02,0.00028219,2]
[426026414,1782119506000,-500.0,0.00028219,2]
[426026398,1782119506000,-500.0,0.00028219,2]
[426026374,1782119506000,-7294.75,0.00028219,2]
[426026396,1782119506000,-500.0,0.00028219,2]
[426026429,1782119506000,-500.0,0.00028219,2]
[426026379,1782119506000,-569.65,0.00028219,2]
[426026375,1782119506000,-500.0,0.00028219,2]
[426026377,1782119506000,-500.0,0.00028219,2]
[426026378,1782119506000,-500.0,0.00028219,2]
[426026376,1782119506000,-500.0,0.00028219,2]
[426026381,1782119506000,-186.7922331,0.00028219,2]
[426026390,1782119506000,-6210.96,0.00028219,2]
[426026380,1782119506000,-4947.53,0.00028219,2]
[426026389,1782119506000,-1476.94,0.00028219,2]
[426026383,1782119506000,-255.72581676,0.00028219,2]
[426026382,1782119506000,-623.15,0.00028219,2]
[426026384,1782119506000,-500.0,0.00028219,2]
[426026386,1782119506000,-628.49,0.00028219,2]
[426026385,1782119506000,-500.0,0.00028219,2]
[426026388,1782119506000,-500.0,0.00028219,2]
[426026387,1782119506000,-500.0,0.00028219,2]
[426026391,1782119506000,-500.0,0.00028219,2]
[426026392,1782119506000,-500.0,0.00028219,2]
[426026394,1782119506000,-500.0,0.00028219,2]
[426026400,1782119506000,-500.0,0.00028219,2]
[426026401,1782119506000,-500.0,0.00028219,2]
[426026395,1782119506000,-500.0,0.00028219,2]
[426026397,1782119506000,-3112.0,0.00028219,2]
[426026393,1782119506000,-695.9,0.00028219,2]
[426026399,1782119506000,-500.0,0.00028219,2]
[426026430,1782119506000,-500.0,0.00028219,2]
[426026417,1782119506000,-636.72,0.00028219,2]
[426026431,1782119506000,-500.0,0.00028219,2]
[426026460,1782119506000,-500.0,0.00028219,2]
[426026464,1782119506000,-8237.49,0.00028219,2]
[426026467,1782119506000,-500.0,0.00028219,2]
[426026462,1782119506000,-4874.94,0.00028219,2]
[426026461,1782119506000,-500.0,0.00028219,2]
[426026466,1782119506000,-500.0,0.00028219,2]
[426026468,1782119506000,-500.0,0.00028219,2]
[426026463,1782119506000,-500.0,0.00028219,2]
[426026465,1782119506000,-500.0,0.00028219,2]
[426026469,1782119506000,-1020.09,0.00028219,2]
[426026475,1782119506000,-500.0,0.00028219,2]
[426026459,1782119506000,-4216.49,0.00028219,2]
[426026474,1782119506000,-1083.39,0.00028219,2]
[426026472,1782119506000,-1119.42,0.00028219,2]
[426026478,1782119506000,-500.0,0.00028219,2]
[426026477,1782119506000,-500.0,0.00028219,2]
[426026471,1782119506000,-500.0,0.00028219,2]
[426026470,1782119506000,-747.71,0.00028219,2]
[426026476,1782119506000,-500.0,0.00028219,2]
[426026479,1782119506000,-500.0,0.00028219,2]
[426026481,1782119506000,-500.0,0.00028219,2]
[426026482,1782119506000,-500.0,0.00028219,2]
[426026480,1782119506000,-538.18,0.00028219,2]
[426026483,1782119506000,-500.0,0.00028219,2]
[426026473,1782119506000,-500.0,0.00028219,2]
[426026458,1782119506000,-5391.54,0.00028219,2]
[426026425,1782119506000,-729.11,0.00028219,2]
[426026454,1782119506000,-500.0,0.00028219,2]
[426026456,1782119506000,-500.0,0.00028219,2]
[426026428,1782119506000,-466.30767925,0.00028219,2]
[426026433,1782119506000,-4838.88,0.00028219,2]
[426026427,1782119506000,-500.0,0.00028219,2]
[426026435,1782119506000,-500.0,0.00028219,2]
[426026434,1782119506000,-500.0,0.00028219,2]
[426026432,1782119506000,-500.0,0.00028219,2]
[426026439,1782119506000,-500.0,0.00028219,2]
[426026442,1782119506000,-500.0,0.00028219,2]
[426026446,1782119506000,-2905.47,0.00028219,2]
[426026444,1782119506000,-500.0,0.00028219,2]
[426026443,1782119506000,-500.0,0.00028219,2]
[426026437,1782119506000,-500.0,0.00028219,2]
[426026447,1782119506000,-500.0,0.00028219,2]
[426026438,1782119506000,-500.0,0.00028219,2]
[426026455,1782119506000,-500.0,0.00028219,2]
[426026453,1782119506000,-4736.1,0.00028219,2]
[426026450,1782119506000,-7830.66,0.00028219,2]
[426026451,1782119506000,-500.0,0.00028219,2]
[426026452,1782119506000,-500.0,0.00028219,2]
[426026457,1782119506000,-5236.5,0.00028219,2]
[426026449,1782119506000,-500.0,0.00028219,2]
[426026445,1782119506000,-8420.27,0.00028219,2]
[426026440,1782119506000,-1021.59,0.00028219,2]
[426026441,1782119506000,-500.0,0.00028219,2]
[426026448,1782119506000,-924.56,0.00028219,2]
[426026515,1782119507000,-500.0,0.00028219,2]
[426026523,1782119507000,-500.0,0.00028219,2]
[426026520,1782119507000,-500.0,0.00028219,2]
[426026522,1782119507000,-500.0,0.00028219,2]
[426026516,1782119507000,-1346.59,0.00028219,2]
[426026518,1782119507000,-500.0,0.00028219,2]
[426026517,1782119507000,-3434.95,0.00028219,2]
[426026521,1782119507000,-500.0,0.00028219,2]
[426026524,1782119507000,-500.0,0.00028219,2]
[426026526,1782119507000,-500.0,0.00028219,2]
[426026519,1782119507000,-595.08,0.00028219,2]
[426026525,1782119507000,-500.0,0.00028219,2]
[426026539,1782119507000,-500.0,0.00028219,2]
[426026529,1782119507000,-500.0,0.00028219,2]
[426026528,1782119507000,-500.0,0.00028219,2]
[426026530,1782119507000,-557.71,0.00028219,2]
[426026533,1782119507000,-500.0,0.00028219,2]
[426026534,1782119507000,-10088.44,0.00028219,2]
[426026531,1782119507000,-500.0,0.00028219,2]
[426026532,1782119507000,-500.0,0.00028219,2]
[426026535,1782119507000,-500.0,0.00028219,2]
[426026536,1782119507000,-210.94794922,0.00028219,2]
[426026545,1782119507000,-649.56,0.00028219,2]